[Event "Titled Tuesday Blitz August 16 Early 2022"]
[White "Ronka, Erik"]
[Black "Zherebtsova, Alexandra"]
[WhiteFideId "505080"]
[BlackFideId "24129518"]
[WhiteElo "2264"]
[BlackElo "2025"]
[Result "1-0"]
[Round "04"]
[TimeControl "180+2"]
[Date "2022.08.18"]
[WhiteClock "0:00:00"]
[BlackClock "0:00:00"]

1. e4 {[%clk 0:00:00]}  e5 {[%clk 0:00:00]} 2. Nc3 {[%clk 0:00:00]}  Nc6 {[%clk 0:00:00]} 3. Bc4 {[%clk 0:00:00]}  Nf6 {[%clk 0:00:00]} 4. d3 {[%clk 0:00:00]}  Na5 {[%clk 0:00:00]} 5. Bb3 {[%clk 0:00:00]}  Nxb3 {[%clk 0:00:00]} 6. axb3 {[%clk 0:00:00]}  d6 {[%clk 0:00:00]} 7. f4 {[%clk 0:00:00]}  c6 {[%clk 0:00:00]} 8. Nf3 {[%clk 0:00:00]}  Qc7 {[%clk 0:00:00]} 9. O-O {[%clk 0:00:00]}  Be7 {[%clk 0:00:00]} 10. Kh1 {[%clk 0:00:00]}  Bd7 {[%clk 0:00:00]} 11. Qe2 {[%clk 0:00:00]}  a6 {[%clk 0:00:00]} 12. Bd2 {[%clk 0:00:00]}  h6 {[%clk 0:00:00]} 13. Be3 {[%clk 0:00:00]}  exf4 {[%clk 0:00:00]} 14. Bxf4 {[%clk 0:00:00]}  g5 {[%clk 0:00:00]} 15. Be3 {[%clk 0:00:00]}  Ng4 {[%clk 0:00:00]} 16. Bg1 {[%clk 0:00:00]}  O-O-O {[%clk 0:00:00]} 17. Na4 {[%clk 0:00:00]}  c5 {[%clk 0:00:00]} 18. Nc3 {[%clk 0:00:00]}  Be6 {[%clk 0:00:00]} 19. d4 {[%clk 0:00:00]}  Rde8 {[%clk 0:00:00]} 20. b4 {[%clk 0:00:00]}  cxb4 {[%clk 0:00:00]} 21. Na4 {[%clk 0:00:00]}  Bc4 {[%clk 0:00:00]} 22. Qd2 {[%clk 0:00:00]}  Bxf1 {[%clk 0:00:00]} 23. Rxf1 {[%clk 0:00:00]}  Bd8 {[%clk 0:00:00]} 24. d5 {[%clk 0:00:00]}  Rxe4 {[%clk 0:00:00]} 25. Nd4 {[%clk 0:00:00]}  Rhe8 {[%clk 0:00:00]} 26. Nf5 {[%clk 0:00:00]}  Kb8 {[%clk 0:00:00]} 27. h3 {[%clk 0:00:00]}  Qd7 {[%clk 0:00:00]} 28. hxg4 {[%clk 0:00:00]}  Qxa4 {[%clk 0:00:00]} 29. Nxd6 {[%clk 0:00:00]}  Re2 {[%clk 0:00:00]} 30. Qd4 {[%clk 0:00:00]}  b6 {[%clk 0:00:00]} 31. Nxf7 {[%clk 0:00:00]}  Qb5 {[%clk 0:00:00]} 32. Nd6 {[%clk 0:00:00]}  R2e4 {[%clk 0:00:00]} 33. Nxe4 {[%clk 0:00:00]}  Qxf1 {[%clk 0:00:00]} 34. Nd2 {[%clk 0:00:00]}  Qe1 {[%clk 0:00:00]} 35. d6 {[%clk 0:00:00]}  Rf8 {[%clk 0:00:00]} 36. d7 {[%clk 0:00:00]}  Ka8 {[%clk 0:00:00]} 37. Qd5+ {[%clk 0:00:00]}  Ka7 {[%clk 0:00:00]} 38. Qd6 {[%clk 0:00:00]}  Qh4+ {[%clk 0:00:00]} 39. Bh2 {[%clk 0:00:00]}  Qe1+ {[%clk 0:00:00]} 40. Bg1 {[%clk 0:00:00]}  Qh4+ {[%clk 0:00:00]} 41. Qh2 {[%clk 0:00:00]}  Qxh2+ {[%clk 0:00:00]} 42. Kxh2 {[%clk 0:00:00]}  Rf4 {[%clk 0:00:00]} 43. Nf3 {[%clk 0:00:00]}  Rf7 {[%clk 0:00:00]} 44. Ne5 {[%clk 0:00:00]}  Rg7 {[%clk 0:00:00]} 45. Nc6+ {[%clk 0:00:00]} 1-0


[Site "https://www.chess.com"]

[Event "Titled Tuesday Blitz August 16 Early 2022"]
[White "Rosenberg, Evan S"]
[Black "Averjanov, Alexey"]
[WhiteFideId "2019299"]
[BlackFideId "14109867"]
[WhiteElo "1999"]
[BlackElo "2399"]
[Result "1/2-1/2"]
[Round "04"]
[TimeControl "180+2"]
[Date "2022.08.18"]
[WhiteClock "0:00:00"]
[BlackClock "0:00:00"]

1. e4 {[%clk 0:00:00]}  c6 {[%clk 0:00:00]} 2. d4 {[%clk 0:00:00]}  d5 {[%clk 0:00:00]} 3. e5 {[%clk 0:00:00]}  Bf5 {[%clk 0:00:00]} 4. h4 {[%clk 0:00:00]}  h5 {[%clk 0:00:00]} 5. Bg5 {[%clk 0:00:00]}  Qb6 {[%clk 0:00:00]} 6. Bd3 {[%clk 0:00:00]}  Bxd3 {[%clk 0:00:00]} 7. Qxd3 {[%clk 0:00:00]}  e6 {[%clk 0:00:00]} 8. Nd2 {[%clk 0:00:00]}  Qa6 {[%clk 0:00:00]} 9. c4 {[%clk 0:00:00]}  Bb4 {[%clk 0:00:00]} 10. Nf3 {[%clk 0:00:00]}  Ne7 {[%clk 0:00:00]} 11. b3 {[%clk 0:00:00]}  Nf5 {[%clk 0:00:00]} 12. O-O {[%clk 0:00:00]}  Nd7 {[%clk 0:00:00]} 13. Rfd1 {[%clk 0:00:00]}  c5 {[%clk 0:00:00]} 14. Nf1 {[%clk 0:00:00]}  dxc4 {[%clk 0:00:00]} 15. bxc4 {[%clk 0:00:00]}  cxd4 {[%clk 0:00:00]} 16. Rab1 {[%clk 0:00:00]}  Bc3 {[%clk 0:00:00]} 17. Qe4 {[%clk 0:00:00]}  Nc5 {[%clk 0:00:00]} 18. Qe2 {[%clk 0:00:00]}  d3 {[%clk 0:00:00]} 19. Rxd3 {[%clk 0:00:00]}  Nxd3 {[%clk 0:00:00]} 20. Qxd3 {[%clk 0:00:00]}  Ba5 {[%clk 0:00:00]} 21. Qa3 {[%clk 0:00:00]}  Bd8 {[%clk 0:00:00]} 22. Qxa6 {[%clk 0:00:00]}  bxa6 {[%clk 0:00:00]} 23. Rb7 {[%clk 0:00:00]}  Bxg5 {[%clk 0:00:00]} 24. Nxg5 {[%clk 0:00:00]}  O-O {[%clk 0:00:00]} 25. g3 {[%clk 0:00:00]}  Nh6 {[%clk 0:00:00]} 26. Ne3 {[%clk 0:00:00]}  Rfb8 {[%clk 0:00:00]} 27. Rc7 {[%clk 0:00:00]}  Rc8 {[%clk 0:00:00]} 28. Rd7 {[%clk 0:00:00]}  a5 {[%clk 0:00:00]} 29. a4 {[%clk 0:00:00]}  a6 {[%clk 0:00:00]} 30. Kg2 {[%clk 0:00:00]}  Rd8 {[%clk 0:00:00]} 31. Rb7 {[%clk 0:00:00]}  Rab8 {[%clk 0:00:00]} 32. Ra7 {[%clk 0:00:00]}  Rb4 {[%clk 0:00:00]} 33. c5 {[%clk 0:00:00]}  Rc8 {[%clk 0:00:00]} 34. Rxa6 {[%clk 0:00:00]}  Rxa4 {[%clk 0:00:00]} 35. c6 {[%clk 0:00:00]}  Ra2 {[%clk 0:00:00]} 36. c7 {[%clk 0:00:00]}  Rb2 {[%clk 0:00:00]} 37. Nc4 {[%clk 0:00:00]}  Rb7 {[%clk 0:00:00]} 38. Nd6 {[%clk 0:00:00]}  Rbxc7 {[%clk 0:00:00]} 39. Nxc8 {[%clk 0:00:00]}  Rxc8 {[%clk 0:00:00]} 40. Rxa5 {[%clk 0:00:00]}  g6 {[%clk 0:00:00]} 41. Ra7 {[%clk 0:00:00]}  Rf8 {[%clk 0:00:00]} 42. f3 {[%clk 0:00:00]}  Nf5 {[%clk 0:00:00]} 43. Ne4 {[%clk 0:00:00]}  Kg7 {[%clk 0:00:00]} 44. Nf6 {[%clk 0:00:00]}  Rd8 {[%clk 0:00:00]} 45. Kh3 {[%clk 0:00:00]}  Nd4 {[%clk 0:00:00]} 46. f4 {[%clk 0:00:00]}  Nf5 {[%clk 0:00:00]} 47. Ra3 {[%clk 0:00:00]}  Rc8 {[%clk 0:00:00]} 48. g4 {[%clk 0:00:00]}  hxg4+ {[%clk 0:00:00]} 49. Nxg4 {[%clk 0:00:00]}  Nh6 {[%clk 0:00:00]} 50. Nxh6 {[%clk 0:00:00]}  Kxh6 {[%clk 0:00:00]} 51. Kg4 {[%clk 0:00:00]}  Rc1 {[%clk 0:00:00]} 52. Ra7 {[%clk 0:00:00]}  Kg7 {[%clk 0:00:00]} 53. Kg3 {[%clk 0:00:00]}  Rg1+ {[%clk 0:00:00]} 54. Kh3 {[%clk 0:00:00]}  Rf1 {[%clk 0:00:00]} 55. Kg3 {[%clk 0:00:00]}  Rh1 {[%clk 0:00:00]} 56. Kg4 {[%clk 0:00:00]}  Rh2 {[%clk 0:00:00]} 57. Kg3 {[%clk 0:00:00]}  Rb2 {[%clk 0:00:00]} 58. Kg4 {[%clk 0:00:00]}  Rb4 {[%clk 0:00:00]} 59. Kg3 {[%clk 0:00:00]}  Rb8 {[%clk 0:00:00]} 60. Kg4 {[%clk 0:00:00]}  Rc8 {[%clk 0:00:00]} 61. Kg3 {[%clk 0:00:00]}  Rc3+ {[%clk 0:00:00]} 62. Kg4 {[%clk 0:00:00]}  Rd3 {[%clk 0:00:00]} 63. Rb7 {[%clk 0:00:00]}  Ra3 {[%clk 0:00:00]} 64. Rc7 {[%clk 0:00:00]}  Rb3 {[%clk 0:00:00]} 65. Rd7 {[%clk 0:00:00]}  Rc3 {[%clk 0:00:00]} 66. Rb7 {[%clk 0:00:00]}  Re3 {[%clk 0:00:00]} 67. Rc7 {[%clk 0:00:00]}  Re4 {[%clk 0:00:00]} 68. Kf3 {[%clk 0:00:00]}  Rd4 {[%clk 0:00:00]} 69. Kg3 {[%clk 0:00:00]}  Rb4 {[%clk 0:00:00]} 70. Kf3 {[%clk 0:00:00]}  Rb5 {[%clk 0:00:00]} 71. Kg3 {[%clk 0:00:00]}  Rb6 {[%clk 0:00:00]} 72. Kf3 {[%clk 0:00:00]}  Ra6 {[%clk 0:00:00]} 73. Kg3 {[%clk 0:00:00]}  Ra8 {[%clk 0:00:00]} 74. Kf3 {[%clk 0:00:00]}  Rb8 {[%clk 0:00:00]} 75. Kg3 {[%clk 0:00:00]}  Rh8 {[%clk 0:00:00]} 76. Kh3 {[%clk 0:00:00]}  Rh5 {[%clk 0:00:00]} 77. Kg4 {[%clk 0:00:00]}  Rf5 {[%clk 0:00:00]} 78. Kg3 {[%clk 0:00:00]}  Kf8 {[%clk 0:00:00]} 79. Kg4 {[%clk 0:00:00]}  Ke8 {[%clk 0:00:00]} 80. Kg3 {[%clk 0:00:00]}  Kd8 {[%clk 0:00:00]} 81. Ra7 {[%clk 0:00:00]}  Ke8 {[%clk 0:00:00]} 82. Kg4 {[%clk 0:00:00]}  Kf8 {[%clk 0:00:00]} 83. Rb7 {[%clk 0:00:00]}  Rh5 {[%clk 0:00:00]} 84. Rc7 {[%clk 0:00:00]}  Kg7 {[%clk 0:00:00]} 85. Rd7 {[%clk 0:00:00]}  Rh8 {[%clk 0:00:00]} 86. Rc7 {[%clk 0:00:00]}  Rd8 {[%clk 0:00:00]} 87. Rb7 {[%clk 0:00:00]}  Rf8 {[%clk 0:00:00]} 88. Rc7 {[%clk 0:00:00]}  Kh6 {[%clk 0:00:00]} 89. Rd7 {[%clk 0:00:00]}  f6 {[%clk 0:00:00]} 90. exf6 {[%clk 0:00:00]}  Rxf6 {[%clk 0:00:00]} 91. Re7 {[%clk 0:00:00]}  Rf8 {[%clk 0:00:00]} 92. Rxe6 {[%clk 0:00:00]}  Kg7 {[%clk 0:00:00]} 93. h5 {[%clk 0:00:00]}  gxh5+ {[%clk 0:00:00]} 94. Kxh5 {[%clk 0:00:00]}  Rxf4 {[%clk 0:00:00]} 95. Kg5 {[%clk 0:00:00]}  Rf1 {[%clk 0:00:00]} 96. Re7+ {[%clk 0:00:00]}  Kf8 {[%clk 0:00:00]} 97. Ra7 {[%clk 0:00:00]}  Ke8 {[%clk 0:00:00]} 98. Kg6 {[%clk 0:00:00]}  Kd8 {[%clk 0:00:00]} 99. Kg5 {[%clk 0:00:00]}  Rg1+ {[%clk 0:00:00]} 100. Kf6 {[%clk 0:00:00]}  Re1 {[%clk 0:00:00]} 101. Kf5 {[%clk 0:00:00]}  Kc8 {[%clk 0:00:00]} 102. Kf4 {[%clk 0:00:00]}  Kb8 {[%clk 0:00:00]} 103. Rh7 {[%clk 0:00:00]}  Rc1 {[%clk 0:00:00]} 104. Ke5 {[%clk 0:00:00]}  Rc6 {[%clk 0:00:00]} 105. Kd5 {[%clk 0:00:00]}  Rg6 {[%clk 0:00:00]} 106. Kc5 {[%clk 0:00:00]}  Kc8 {[%clk 0:00:00]} 107. Kb5 {[%clk 0:00:00]}  Kd8 {[%clk 0:00:00]} 108. Ka5 {[%clk 0:00:00]}  Ke8 {[%clk 0:00:00]} 109. Kb5 {[%clk 0:00:00]}  Kf8 {[%clk 0:00:00]} 110. Ka5 {[%clk 0:00:00]}  Kg8 {[%clk 0:00:00]} 111. Rb7 {[%clk 0:00:00]}  Rg5+ {[%clk 0:00:00]} 112. Kb4 {[%clk 0:00:00]}  Rg6 {[%clk 0:00:00]} 113. Kc5 {[%clk 0:00:00]}  Rg3 {[%clk 0:00:00]} 114. Kd5 {[%clk 0:00:00]}  Re3 {[%clk 0:00:00]} 115. Kd4 {[%clk 0:00:00]}  Re1 {[%clk 0:00:00]} 116. Kd5 {[%clk 0:00:00]}  Re8 {[%clk 0:00:00]} 117. Kd6 {[%clk 0:00:00]}  Rf8 {[%clk 0:00:00]} 118. Ke6 {[%clk 0:00:00]}  Re8+ {[%clk 0:00:00]} 119. Kf6 {[%clk 0:00:00]}  Rf8+ {[%clk 0:00:00]} 120. Kg6 {[%clk 0:00:00]}  Ra8 {[%clk 0:00:00]} 121. Rg7+ {[%clk 0:00:00]}  Kf8 {[%clk 0:00:00]} 122. Rf7+ {[%clk 0:00:00]}  Ke8 {[%clk 0:00:00]} 123. Rb7 {[%clk 0:00:00]}  Ra6+ {[%clk 0:00:00]} 124. Kg5 {[%clk 0:00:00]}  Kd8 {[%clk 0:00:00]} 125. Rh7 {[%clk 0:00:00]}  Ra5+ {[%clk 0:00:00]} 126. Kf6 {[%clk 0:00:00]}  Kc8 {[%clk 0:00:00]} 127. Ke6 {[%clk 0:00:00]}  Ra6+ {[%clk 0:00:00]} 128. Kd5 {[%clk 0:00:00]}  Rf6 {[%clk 0:00:00]} 129. Kc5 {[%clk 0:00:00]}  Kb8 {[%clk 0:00:00]} 130. Kb5 {[%clk 0:00:00]}  Rg6 {[%clk 0:00:00]} 131. Ka5 {[%clk 0:00:00]}  Rg5+ {[%clk 0:00:00]} 132. Kb6 {[%clk 0:00:00]}  Rg6+ {[%clk 0:00:00]} 133. Kb5 {[%clk 0:00:00]}  Kc8 {[%clk 0:00:00]} 134. Kc5 {[%clk 0:00:00]}  Kd8 {[%clk 0:00:00]} 135. Kd5 {[%clk 0:00:00]}  Ke8 {[%clk 0:00:00]} 136. Ke5 {[%clk 0:00:00]}  Kf8 {[%clk 0:00:00]} 137. Kf5 {[%clk 0:00:00]}  Rc6 {[%clk 0:00:00]} 138. Ra7 {[%clk 0:00:00]}  Rb6 {[%clk 0:00:00]} 139. Ke5 {[%clk 0:00:00]}  Rb5+ {[%clk 0:00:00]} 140. Kf6 {[%clk 0:00:00]}  Rb6+ {[%clk 0:00:00]} 141. Kf5 {[%clk 0:00:00]}  Rb8 {[%clk 0:00:00]} 142. Kg5 {[%clk 0:00:00]}  Ke8 {[%clk 0:00:00]} 143. Kh5 {[%clk 0:00:00]}  Kd8 {[%clk 0:00:00]} 144. Kg5 {[%clk 0:00:00]}  Kc8 {[%clk 0:00:00]} 1/2-1/2


[Site "https://www.chess.com"]

[Event "Titled Tuesday Blitz August 16 Early 2022"]
[White "Salem, A.R. Saleh"]
[Black "Volkov, Maksim"]
[WhiteFideId "9301348"]
[BlackFideId "54123070"]
[WhiteElo "2674"]
[BlackElo "2155"]
[Result "1-0"]
[Round "04"]
[TimeControl "180+1"]
[Date "2022.08.16"]
[WhiteClock "0:00:40"]
[BlackClock "0:00:17"]

1. d4 {[%clk 0:03:00]}  d5 {[%clk 0:02:59]} 2. c4 {[%clk 0:03:01]}  e6 {[%clk 0:02:59]} 3. Nc3 {[%clk 0:03:02]}  c6 {[%clk 0:03:00]} 4. Nf3 {[%clk 0:03:01]}  dxc4 {[%clk 0:03:00]} 5. e4 {[%clk 0:03:01]}  b5 {[%clk 0:03:00]} 6. Be2 {[%clk 0:03:02]}  Bb7 {[%clk 0:02:59]} 7. O-O {[%clk 0:03:02]}  Nf6 {[%clk 0:02:58]} 8. e5 {[%clk 0:03:01]}  Nd5 {[%clk 0:02:58]} 9. a4 {[%clk 0:03:02]}  a6 {[%clk 0:02:56]} 10. Ne4 {[%clk 0:03:02]}  Nd7 {[%clk 0:02:54]} 11. Nfg5 {[%clk 0:03:02]}  Be7 {[%clk 0:02:46]} 12. Bh5 {[%clk 0:03:02]}  g6 {[%clk 0:02:42]} 13. Qf3 {[%clk 0:03:02]}  O-O {[%clk 0:01:26]} 14. Qh3 {[%clk 0:03:01]}  Bxg5 {[%clk 0:01:10]} 15. Nxg5 {[%clk 0:03:01]}  N7f6 {[%clk 0:00:46]} 16. exf6 {[%clk 0:03:00]}  Nxf6 {[%clk 0:00:46]} 17. Bf3 {[%clk 0:02:54]}  Qxd4 {[%clk 0:00:44]} 18. Qh6 {[%clk 0:02:47]}  Rfd8 {[%clk 0:00:41]} 19. axb5 {[%clk 0:02:23]}  axb5 {[%clk 0:00:40]} 20. Rxa8 {[%clk 0:02:23]}  Bxa8 {[%clk 0:00:40]} 21. h3 {[%clk 0:02:22]}  b4 {[%clk 0:00:38]} 22. Rd1 {[%clk 0:01:44]}  Qb6 {[%clk 0:00:37]} 23. Be3 {[%clk 0:01:23]}  Rxd1+ {[%clk 0:00:37]} 24. Bxd1 {[%clk 0:01:24]}  c5 {[%clk 0:00:37]} 25. Qh4 {[%clk 0:01:19]}  Bd5 {[%clk 0:00:36]} 26. Qf4 {[%clk 0:01:16]}  Kg7 {[%clk 0:00:36]} 27. Qe5 {[%clk 0:01:11]}  Qa7 {[%clk 0:00:23]} 28. Bf3 {[%clk 0:01:02]}  h6 {[%clk 0:00:20]} 29. Ne4 {[%clk 0:00:52]}  Bxe4 {[%clk 0:00:19]} 30. Bxe4 {[%clk 0:00:53]}  Qe7 {[%clk 0:00:17]} 31. Bxc5 {[%clk 0:00:52]}  Qd8 {[%clk 0:00:18]} 32. Bxb4 {[%clk 0:00:47]}  Kh7 {[%clk 0:00:18]} 33. Bc3 {[%clk 0:00:42]}  Nh5 {[%clk 0:00:18]} 34. Qxh5 {[%clk 0:00:40]}  Qd1+ {[%clk 0:00:17]} 35. Qxd1 {[%clk 0:00:40]} 1-0


[Site "https://www.chess.com"]

[Event "Titled Tuesday Blitz August 16 Early 2022"]
[White "Samunenkov, Ihor"]
[Black "Vovk, Orest"]
[WhiteFideId "14187086"]
[BlackFideId "14113490"]
[WhiteElo "2441"]
[BlackElo "2203"]
[Result "0-1"]
[Round "04"]
[TimeControl "180+2"]
[Date "2022.08.18"]
[WhiteClock "0:00:00"]
[BlackClock "0:00:00"]

1. Nf3 {[%clk 0:00:00]}  Nf6 {[%clk 0:00:00]} 2. d4 {[%clk 0:00:00]}  Rg8 {[%clk 0:00:00]} 3. c4 {[%clk 0:00:00]}  h6 {[%clk 0:00:00]} 4. Nc3 {[%clk 0:00:00]}  g5 {[%clk 0:00:00]} 5. e4 {[%clk 0:00:00]}  g4 {[%clk 0:00:00]} 6. Nd2 {[%clk 0:00:00]}  c5 {[%clk 0:00:00]} 7. d5 {[%clk 0:00:00]}  d6 {[%clk 0:00:00]} 8. Be2 {[%clk 0:00:00]}  Nbd7 {[%clk 0:00:00]} 9. Nf1 {[%clk 0:00:00]}  Ne5 {[%clk 0:00:00]} 10. Ne3 {[%clk 0:00:00]}  h5 {[%clk 0:00:00]} 11. Qc2 {[%clk 0:00:00]}  Bh6 {[%clk 0:00:00]} 12. Bd2 {[%clk 0:00:00]}  Bd7 {[%clk 0:00:00]} 13. a3 {[%clk 0:00:00]}  a6 {[%clk 0:00:00]} 14. b4 {[%clk 0:00:00]}  Qc7 {[%clk 0:00:00]} 15. Rb1 {[%clk 0:00:00]}  cxb4 {[%clk 0:00:00]} 16. Rxb4 {[%clk 0:00:00]}  b5 {[%clk 0:00:00]} 17. cxb5 {[%clk 0:00:00]}  axb5 {[%clk 0:00:00]} 18. Nxb5 {[%clk 0:00:00]}  Qxc2 {[%clk 0:00:00]} 19. Nxc2 {[%clk 0:00:00]}  Bxd2+ {[%clk 0:00:00]} 20. Kxd2 {[%clk 0:00:00]}  Bxb5 {[%clk 0:00:00]} 21. Bxb5+ {[%clk 0:00:00]}  Kf8 {[%clk 0:00:00]} 22. a4 {[%clk 0:00:00]}  Kg7 {[%clk 0:00:00]} 23. Ne3 {[%clk 0:00:00]}  Rgb8 {[%clk 0:00:00]} 24. Rc1 {[%clk 0:00:00]}  Rxa4 {[%clk 0:00:00]} 25. Nf5+ {[%clk 0:00:00]}  Kg6 {[%clk 0:00:00]} 26. Nxe7+ {[%clk 0:00:00]}  Kg5 {[%clk 0:00:00]} 27. Rxa4 {[%clk 0:00:00]}  Rxb5 {[%clk 0:00:00]} 28. Nc6 {[%clk 0:00:00]}  Ned7 {[%clk 0:00:00]} 29. Rd4 {[%clk 0:00:00]}  Nc5 {[%clk 0:00:00]} 30. Ke3 {[%clk 0:00:00]}  Rb3+ {[%clk 0:00:00]} 31. Ke2 {[%clk 0:00:00]}  Nfxe4 {[%clk 0:00:00]} 32. Rc2 {[%clk 0:00:00]}  Nc3+ {[%clk 0:00:00]} 33. Kd2 {[%clk 0:00:00]}  N3e4+ {[%clk 0:00:00]} 34. Kc1 {[%clk 0:00:00]}  f5 {[%clk 0:00:00]} 35. f3 {[%clk 0:00:00]}  gxf3 {[%clk 0:00:00]} 36. gxf3 {[%clk 0:00:00]}  Rxf3 {[%clk 0:00:00]} 37. Kb2 {[%clk 0:00:00]}  h4 {[%clk 0:00:00]} 38. Ka2 {[%clk 0:00:00]}  h3 {[%clk 0:00:00]} 39. Ne7 {[%clk 0:00:00]}  Nc3+ {[%clk 0:00:00]} 40. Kb2 {[%clk 0:00:00]}  N5a4+ {[%clk 0:00:00]} 41. Kc1 {[%clk 0:00:00]}  Rf1+ {[%clk 0:00:00]} 42. Kd2 {[%clk 0:00:00]}  Rd1+ {[%clk 0:00:00]} 43. Ke3 {[%clk 0:00:00]}  Re1+ {[%clk 0:00:00]} 44. Kd3 {[%clk 0:00:00]}  Ne4 {[%clk 0:00:00]} 45. Re2 {[%clk 0:00:00]}  Nac5+ {[%clk 0:00:00]} 46. Ke3 {[%clk 0:00:00]}  f4+ {[%clk 0:00:00]} 47. Kf3 {[%clk 0:00:00]}  Rf1+ {[%clk 0:00:00]} 0-1


[Site "https://www.chess.com"]

[Event "Titled Tuesday Blitz August 16 Early 2022"]
[White "Sanchez, Robert"]
[Black "Omariev, Maksim"]
[WhiteFideId "2034360"]
[BlackFideId "4193423"]
[WhiteElo "1966"]
[BlackElo "2304"]
[Result "1-0"]
[Round "04"]
[TimeControl "180+2"]
[Date "2022.08.18"]
[WhiteClock "0:00:00"]
[BlackClock "0:00:00"]

1. e4 {[%clk 0:00:00]}  c5 {[%clk 0:00:00]} 2. Nf3 {[%clk 0:00:00]}  d6 {[%clk 0:00:00]} 3. d4 {[%clk 0:00:00]}  cxd4 {[%clk 0:00:00]} 4. Nxd4 {[%clk 0:00:00]}  Nf6 {[%clk 0:00:00]} 5. Nc3 {[%clk 0:00:00]}  a6 {[%clk 0:00:00]} 6. Be3 {[%clk 0:00:00]}  Ng4 {[%clk 0:00:00]} 7. Bc1 {[%clk 0:00:00]}  Nf6 {[%clk 0:00:00]} 8. Be3 {[%clk 0:00:00]}  e6 {[%clk 0:00:00]} 9. f3 {[%clk 0:00:00]}  b5 {[%clk 0:00:00]} 10. Qd2 {[%clk 0:00:00]}  Nbd7 {[%clk 0:00:00]} 11. O-O-O {[%clk 0:00:00]}  b4 {[%clk 0:00:00]} 12. Nce2 {[%clk 0:00:00]}  d5 {[%clk 0:00:00]} 13. exd5 {[%clk 0:00:00]}  Nxd5 {[%clk 0:00:00]} 14. Bf2 {[%clk 0:00:00]}  Bb7 {[%clk 0:00:00]} 15. Kb1 {[%clk 0:00:00]}  Bc5 {[%clk 0:00:00]} 16. Nc1 {[%clk 0:00:00]}  O-O {[%clk 0:00:00]} 17. Ncb3 {[%clk 0:00:00]}  Bb6 {[%clk 0:00:00]} 18. Bd3 {[%clk 0:00:00]}  a5 {[%clk 0:00:00]} 19. Be4 {[%clk 0:00:00]}  N7f6 {[%clk 0:00:00]} 20. Bh4 {[%clk 0:00:00]}  a4 {[%clk 0:00:00]} 21. Bxd5 {[%clk 0:00:00]}  Bxd5 {[%clk 0:00:00]} 22. Nc1 {[%clk 0:00:00]}  Rc8 {[%clk 0:00:00]} 23. Qf4 {[%clk 0:00:00]}  a3 {[%clk 0:00:00]} 24. b3 {[%clk 0:00:00]}  Qe7 {[%clk 0:00:00]} 25. Bxf6 {[%clk 0:00:00]}  gxf6 {[%clk 0:00:00]} 26. Rhe1 {[%clk 0:00:00]}  Bxd4 {[%clk 0:00:00]} 27. Rxd4 {[%clk 0:00:00]}  Qc5 {[%clk 0:00:00]} 28. Qd2 {[%clk 0:00:00]}  Kh8 {[%clk 0:00:00]} 29. Re2 {[%clk 0:00:00]}  Rb8 {[%clk 0:00:00]} 30. Rh4 {[%clk 0:00:00]}  Rg8 {[%clk 0:00:00]} 31. Nd3 {[%clk 0:00:00]}  Qe7 {[%clk 0:00:00]} 32. Nf4 {[%clk 0:00:00]} 1-0


[Site "https://www.chess.com"]

[Event "Titled Tuesday Blitz August 16 Early 2022"]
[White "Santeramo, Alessia Carmen"]
[Black "Pastar, Slaven"]
[WhiteFideId "850810"]
[BlackFideId "14402718"]
[WhiteElo "2041"]
[BlackElo "2248"]
[Result "0-1"]
[Round "04"]
[TimeControl "180+2"]
[Date "2022.08.18"]
[WhiteClock "0:00:00"]
[BlackClock "0:00:00"]

1. e4 {[%clk 0:00:00]}  b6 {[%clk 0:00:00]} 2. d4 {[%clk 0:00:00]}  Bb7 {[%clk 0:00:00]} 3. Bd3 {[%clk 0:00:00]}  Nf6 {[%clk 0:00:00]} 4. Qe2 {[%clk 0:00:00]}  e6 {[%clk 0:00:00]} 5. e5 {[%clk 0:00:00]}  Bxg2 {[%clk 0:00:00]} 6. exf6 {[%clk 0:00:00]}  Bxh1 {[%clk 0:00:00]} 7. f3 {[%clk 0:00:00]}  gxf6 {[%clk 0:00:00]} 8. Nc3 {[%clk 0:00:00]}  Rg8 {[%clk 0:00:00]} 9. Nh3 {[%clk 0:00:00]}  f5 {[%clk 0:00:00]} 10. Bg5 {[%clk 0:00:00]}  Rxg5 {[%clk 0:00:00]} 11. Nxg5 {[%clk 0:00:00]}  Qxg5 {[%clk 0:00:00]} 12. Kf2 {[%clk 0:00:00]}  Qg2+ {[%clk 0:00:00]} 13. Ke1 {[%clk 0:00:00]}  Qg1+ {[%clk 0:00:00]} 14. Qf1 {[%clk 0:00:00]}  Qxf1+ {[%clk 0:00:00]} 15. Kxf1 {[%clk 0:00:00]}  Bxf3 {[%clk 0:00:00]} 0-1


[Site "https://www.chess.com"]

[Event "Titled Tuesday Blitz August 16 Early 2022"]
[White "Sarana, Alexey"]
[Black "Zou, Chen"]
[WhiteFideId "24133795"]
[BlackFideId "8610959"]
[WhiteElo "2666"]
[BlackElo "2276"]
[Result "1-0"]
[Round "04"]
[TimeControl "180+1"]
[Date "2022.08.16"]
[WhiteClock "0:00:58"]
[BlackClock "0:00:02"]

1. c4 {[%clk 0:02:57]}  Nf6 {[%clk 0:02:54]} 2. Nc3 {[%clk 0:02:49]}  e5 {[%clk 0:02:50]} 3. Nf3 {[%clk 0:02:47]}  Nc6 {[%clk 0:02:50]} 4. g3 {[%clk 0:02:47]}  d5 {[%clk 0:02:48]} 5. cxd5 {[%clk 0:02:46]}  Nxd5 {[%clk 0:02:48]} 6. Bg2 {[%clk 0:02:47]}  Nb6 {[%clk 0:02:45]} 7. b3 {[%clk 0:02:44]}  Be7 {[%clk 0:02:08]} 8. Bb2 {[%clk 0:02:43]}  O-O {[%clk 0:02:08]} 9. Rc1 {[%clk 0:02:43]}  Be6 {[%clk 0:02:07]} 10. O-O {[%clk 0:02:41]}  Qd7 {[%clk 0:01:57]} 11. Ne4 {[%clk 0:02:41]}  f6 {[%clk 0:01:57]} 12. d4 {[%clk 0:02:35]}  exd4 {[%clk 0:01:56]} 13. Nxd4 {[%clk 0:02:35]}  Nxd4 {[%clk 0:01:54]} 14. Bxd4 {[%clk 0:02:28]}  Rfd8 {[%clk 0:01:44]} 15. Bc5 {[%clk 0:02:28]}  Bd5 {[%clk 0:01:23]} 16. Qc2 {[%clk 0:02:05]}  c6 {[%clk 0:01:15]} 17. Rfd1 {[%clk 0:02:04]}  Bxc5 {[%clk 0:01:10]} 18. Nxc5 {[%clk 0:02:04]}  Qe7 {[%clk 0:01:10]} 19. Bxd5+ {[%clk 0:01:48]}  Nxd5 {[%clk 0:00:56]} 20. e4 {[%clk 0:01:48]}  Nb6 {[%clk 0:00:54]} 21. a4 {[%clk 0:01:47]}  a5 {[%clk 0:00:49]} 22. b4 {[%clk 0:01:23]}  axb4 {[%clk 0:00:43]} 23. Qb3+ {[%clk 0:01:22]}  Kh8 {[%clk 0:00:30]} 24. Rxd8+ {[%clk 0:01:17]}  Qxd8 {[%clk 0:00:22]} 25. Qxb4 {[%clk 0:01:17]}  Qc7 {[%clk 0:00:18]} 26. a5 {[%clk 0:01:02]}  Nd7 {[%clk 0:00:17]} 27. Ne6 {[%clk 0:01:02]}  Qe5 {[%clk 0:00:04]} 28. Qe7 {[%clk 0:01:01]}  f5 {[%clk 0:00:02]} 29. Qxd7 {[%clk 0:00:58]} 1-0


[Site "https://www.chess.com"]